Cogmind - Beta 12 @@@ ROGUE MODE // 2023.06.22 @ 15:57:05 Player: skigear Result: Destroyed by as-44099 with Assembled Heavy Rifle Performance ------------- Evolutions (0) 0 Regions Visited (4) 800 Robots Destroyed (30) 150 Value Destroyed (596) 596 Prototype IDs (0) 0 Alien Tech Used (0) 0 Bonus (283) 283 TOTAL SCORE: 1829 Bonus ------- Aligned with FarCom 300 Friendly Fire -17 Cogmind --------- Core Integrity 0/250 Matter 194/300 Energy 250/250 System Corruption 8% Temperature Cool (95) Movement Treading (240) Ox1 Location -9/Mines Parts ------- > --- POWER (1) -------- Ion Engine > --- PROPULSION (2) --- Light Treads Light Treads > --- UTILITY (2) ------ High-capacity Storage Unit > --- WEAPON (2) ------- Beam Cannon Bore Cannon > --- INVENTORY (20) --- Ion Engine Ion Engine Light Treads Light Treads Wheel Wheel High-capacity Storage Unit High-capacity Battery (250) High-capacity Matter Pod (200) High-capacity Matter Pod (200) XL Autogun Array Light Cannon Grenade Launcher Grenade Launcher Mining Laser Peak State ------------ > --- POWER ------------ Ion Engine > --- PROPULSION ------- Wheel Wheel > --- UTILITY ---------- High-capacity Storage Unit > --- WEAPON ----------- Beam Cannon Bore Cannon > --- INVENTORY -------- Ion Engine Light Treads Light Treads Light Treads Light Treads High-capacity Storage Unit High-capacity Battery High-capacity Matter Pod High-capacity Matter Pod Beam Cannon XL Autogun Array Light Cannon Grenade Launcher Grenade Launcher Mining Laser [Rating: 15] Favorites ----------- Power Ion Engine Engine Ion Engine Power Core Light Nuclear Core Propulsion Light Treads Treads Light Treads Wheel Wheel Utility Signal Interpreter Storage Large Storage Unit Processor Signal Interpreter Protection Weapon Shielding Weapon Beam Cannon Energy Gun Small Laser Energy Cannon Beam Cannon Ballistic Gun Assault Rifle Ballistic Cannon Light Cannon Launcher Grenade Launcher Special Weapon Mining Laser Build | -11 -10 -10 -10 -9 ------- Run | Jun Mat Min Exi Min Slots Evolved . | . . . . . Power . | . . . . . Propulsion . | . . . . . Utility . | . . . . . Weapon . | . . . . . Parts Attached 51 | 6 26 7 5 7 Power 4 | 1 2 1 . . Engine 3 | 1 1 1 . . Core 1 | . 1 . . . Reactor . | . . . . . Propulsion 24 | 2 16 . 2 4 Treads 12 | 1 8 . . 3 Leg . | . . . . . Wheel 12 | 1 8 . 2 1 Hover . | . . . . . Flight . | . . . . . Utility 5 | 1 3 . 1 . Device . | . . . . . Storage 3 | 1 1 . 1 . Processor 1 | . 1 . . . Hackware . | . . . . . Protection 1 | . 1 . . . Artifact . | . . . . . Weapon 18 | 2 5 6 2 3 Energy Gun 1 | 1 . . . . Energy Cannon 4 | . 1 1 1 1 Ballistic Gun 2 | 1 . 1 . . Ballistic Cannon 7 | . 3 3 . 1 Launcher 3 | . 1 1 . 1 Special Weapon 1 | . . . 1 . Impact Weapon . | . . . . . Slashing Weapon . | . . . . . Piercing Weapon . | . . . . . Special Melee Weapon . | . . . . . Unidentified Prototypes . | . . . . . Parts Lost 4 | . . . 3 1 Power . | . . . . . Propulsion 2 | . . . 2 . Utility 1 | . . . 1 . Weapon 1 | . . . . 1 Highest Loss Streak 3 | . . . 3 1 To Critical Strikes . | . . . . . Average Slot Usage (%) 98 | . 99 100 98 84 Engine 11 | . 8 13 14 14 Core 2 | . 5 . . . Treads 14 | . 14 14 12 14 Wheel 13 | . 13 14 15 14 Storage 14 | . 14 14 14 14 Processor 11 | . 10 14 12 . Protection 1 | . 3 . . . Energy Cannon 13 | . 13 14 14 13 Ballistic Gun 3 | . 5 1 . . Ballistic Cannon 10 | . 8 12 12 13 Naked Turns . | . . . . . Heaviest Build 57 | 13 31 31 51 57 Greatest Support 40 | 20 40 10 20 20 Greatest Overweight (x) 5 | 1 3 3 5 5 Average Overweight (x) 3 | . 2 2 4 4 Largest Inventory Capacity 20 | 8 15 15 20 20 Average Capacity 16 | 6 14 15 19 20 Most Carried 20 | 6 15 15 20 18 Average Carried 15 | 3 13 14 18 17 Final Capacity 20 | 8 15 15 20 20 Final Carried 18 | 4 15 15 18 18 Class Distribution -------------------- 100% | Mutant Dominant Class ---------------- Mutant | -10/Materials Mutant | -10/Mines Mutant | -10/Exiles Mutant | -9/Mines Resources | -11 -10 -10 -10 -9 ----------- Run | Jun Mat Min Exi Min Matter Collected 1467 | 187 485 655 63 77 Remotely . | . . . . . Salvage Created 674 | . 450 154 . 70 Parts 57 | . 36 15 . 6 Haulers Intercepted 2 | . 2 . . . Recyclers Shooed . | . . . . . Parts Field Recycled . | . . . . . Retrieved Matter . | . . . . . Parts Self-Destructed . | . . . . . Prevented . | . . . . . Kills | -11 -10 -10 -10 -9 ------- Run | Jun Mat Min Exi Min Combat Hostiles Destroyed 24 | . 10 11 . 3 Guns 2 | . 2 . . . Cannons 20 | . 8 11 . 1 AOE 2 | . . . . 2 Classes Destroyed 6 | . 5 . . 1 Builder 1 | . 1 . . . Hauler 2 | . 2 . . . Watcher 3 | . 3 . . . Swarmer 14 | . 3 11 . . Grunt 9 | . 7 . . 2 Duelist 1 | . . . . 1 Best Kill Streak 3 | . 3 3 . 3 Combat Bots Only 3 | . 3 3 . 3 Max Kills in Single Turn 1 | . 1 1 . 1 Gunslinging . | . . . . . Exploded 1 | . . . . 1 Melee . | . . . . . Uniques/NPCs Destroyed . | . . . . . Combat | -11 -10 -10 -10 -9 -------- Run | Jun Mat Min Exi Min Damage Taken 1431 | . 572 338 325 196 Core 250 | . 86 71 49 44 Absorbed by Shields . | . . . . . Redirected to Shielding 27 | . 27 . . . Core Remaining (%) 100 | 100 . . . . Volleys Fired 104 | 1 54 30 9 10 Largest 2 | 1 2 2 1 2 Hottest 117 | 40 95 95 100 117 Shots Fired 190 | 1 107 54 10 18 Gun 26 | 1 23 2 . . Cannon 151 | . 83 51 1 16 Launcher 4 | . 1 1 . 2 Special 9 | . . . 9 . Kinetic 90 | . 53 29 . 8 Thermal 96 | 1 53 24 10 8 Explosive 4 | . 1 1 . 2 Electromagnetic . | . . . . . Robot Hit Streak 13 | . 13 6 4 6 Robot Miss Streak 3 | . 2 2 . 3 Penetration Max . | . . . . . Secondary Targets . | . . . . . Shots Hit Robots 101 | . 68 22 1 10 Core Hits 36 | . 19 11 . 6 Critical Kills . | . . . . . Critical Parts Destroyed 2 | . . . . 2 Critical Strikes 5 | . 3 . . 2 Destroy 2 | . . . . 2 Blast 3 | . 3 . . . Melee Attacks . | . . . . . Impact . | . . . . . Slashing . | . . . . . Piercing . | . . . . . Sneak Attacks . | . . . . . Combat Hostiles . | . . . . . Follow-up Attacks . | . . . . . Damage Inflicted 1863 | . 1127 401 17 318 Guns 152 | . 152 . . . Cannons 1584 | . 975 401 17 191 Explosions 127 | . . . . 127 Melee . | . . . . . Ramming . | . . . . . Kinetic 740 | . 462 156 . 122 Thermal 996 | . 665 245 17 69 Explosive 127 | . . . . 127 Electromagnetic . | . . . . . Impact . | . . . . . Slashing . | . . . . . Piercing . | . . . . . Highest Corruption 8 | . 1 1 8 8 Average Corruption 1 | . 1 1 1 8 Corruption Purged . | . . . . . Corruption Blocked . | . . . . . Effects 31 | . 1 10 15 5 Message Errors 8 | . . 3 4 1 Matter Fused 9 | . 1 3 3 2 Heat Flow Errors 3 | . . 1 1 1 Energy Discharges 3 | . . 1 2 . Parts Fused 1 | . . 1 . . Data Loss (minor) 3 | . . 1 2 . Data Loss (major) 2 | . . . 2 . Misfires 1 | . . . 1 . Alerts 1 | . . . . 1 Overload Shots . | . . . . . Overflow Damage . | . . . . . Projectiles . | . . . . . Explosions . | . . . . . Melee . | . . . . . Knockbacks 12 | . 7 3 . 2 Impact . | . . . . . Kinetic 11 | . 7 2 . 2 Secondary 1 | . . 1 . . Self-Inflicted Damage . | . . . . . Shots . | . . . . . Rammed . | . . . . . Targets Rammed . | . . . . . Kicked . | . . . . . Crushed . | . . . . . Highest Temperature 276 | . 276 165 191 261 Average Temperature 70 | . 78 55 45 94 Received Heat Transfer 290 | . 246 18 . 26 Effects 3 | . 3 . . . Interference 3 | . 3 . . . Siege Activations . | . . . . . Robots Corrupted . | . . . . . Combat Hostiles . | . . . . . Parts Fried . | . . . . . Impact Corruptions . | . . . . . Robots Melted . | . . . . . Combat Hostiles . | . . . . . Parts Melted 6 | . 2 4 . . Heat Transferred 2109 | . 1406 518 37 148 Parts Sabotaged . | . . . . . Parts Stolen . | . . . . . Parts Stripped . | . . . . . Power Chain Reactions . | . . . . . Missiles Intercepted . | . . . . . Alert | -11 -10 -10 -10 -9 ------- Run | Jun Mat Min Exi Min Peak Influence 210 | . 159 210 . 91 Initial 6 | . . 6 . . Average 60 | . 56 70 . 86 Maximum Alert Level 1 | . . 1 . . Low Security (%) 98 | 100 100 94 . 100 Level 1 1 | . . 5 . . Level 2 . | . . . . . Level 3 . | . . . . . Level 4 . | . . . . . Level 5 . | . . . . . High Security . | . . . . . Max Security . | . . . . . Squads Dispatched 3 | . 3 . . . Investigation 1 | . 1 . . . Extermination . | . . . . . Reinforcement 2 | . 2 . . . Assault . | . . . . . Garrison . | . . . . . Intercept . | . . . . . Searches Triggered . | . . . . . Construction Impeded . | . . . . . Haulers Reinforced . | . . . . . Active Scanning Responses . | . . . . . Cargo Convoy Interrupts . | . . . . . Stealth | -11 -10 -10 -10 -9 --------- Run | Jun Mat Min Exi Min Distress Signals 1 | . 1 . . . Communications Jammed . | . . . . . Distress Signals . | . . . . . Times Spotted 48 | . 24 16 . 8 Peak Tracking Total 4 | . 4 3 . 4 Tactical Retreats 5 | . 2 2 . 1 Traps | -11 -10 -10 -10 -9 ------- Run | Jun Mat Min Exi Min Traps Triggered 1 | . 1 . . . Indirectly . | . . . . . Trap Hack Attempts . | . . . . . Triggered . | . . . . . Disarmed . | . . . . . Reprogrammed . | . . . . . Reused . | . . . . . Traps Extracted . | . . . . . Installed . | . . . . . Triggered . | . . . . . Machines | -11 -10 -10 -10 -9 ---------- Run | Jun Mat Min Exi Min Machines Disabled 2 | . 1 1 . . Max in Single Turn 1 | . 1 1 . . Machines Repaired . | . . . . . Machines Sabotaged . | . . . . . Overloaded Fab Kills . | . . . . . Hacking | -11 -10 -10 -10 -9 --------- Run | Jun Mat Min Exi Min Machines Accessed 12 | . 8 . 4 . Terminals 5 | . 5 . . . Fabricators . | . . . . . Repair Stations 1 | . 1 . . . Recycling Units 2 | . 2 . . . Scanalyzers . | . . . . . Garrison Access . | . . . . . Total Hacks 30 | . 20 . 10 . Successful 17 | . 7 . 10 . Failed 13 | . 13 . . . Catastrophic 3 | . 3 . . . Database Lockouts . | . . . . . Manual 14 | . 13 . 1 . Terminals 15 | . 15 . . . Fabricators . | . . . . . Repair Stations 1 | . 1 . . . Recycling Units 4 | . 4 . . . Scanalyzers . | . . . . . Garrison Access . | . . . . . Terminal Hacks 12 | . 2 . 10 . Record 10 | . . . 10 . Part Schematic 1 | . 1 . . . Alert Level 1 | . 1 . . . Fabricator Hacks . | . . . . . Repair Station Hacks . | . . . . . Recycling Unit Hacks 1 | . 1 . . . Retrieve Components 1 | . 1 . . . Scanalyzer . | . . . . . Garrison Access Hacks . | . . . . . Unauthorized Hacks 4 | . 4 . . . Terminals 2 | . 2 . . . Botnet 2 | . 2 . . . Fabricators . | . . . . . Repair Stations . | . . . . . Recycling Units 2 | . 2 . . . Reject 2 | . 2 . . . Scanalyzers . | . . . . . Garrison Access . | . . . . . Data Cores Recovered . | . . . . . Used . | . . . . . Hacking Detections 8 | . 8 . . . Full Trace Events 1 | . 1 . . . Feedback Events 1 | . 1 . . . Corruption 1 | . 1 . . . Feedback Blocked . | . . . . . Robot Schematics Acquired . | . . . . . Robots Built . | . . . . . Authchips . | . . . . . Time . | . . . . . Total Robot Build Rating . | . . . . . Part Schematics Acquired 1 | . 1 . . . Parts Built . | . . . . . Authchips . | . . . . . Time . | . . . . . Total Part Build Rating . | . . . . . Parts Repaired . | . . . . . Time . | . . . . . Parts Recycled . | . . . . . Recycled Matter . | . . . . . Retrieved Matter . | . . . . . Retrieved Components 9 | . 9 . . . Parts Scanalyzed . | . . . . . Part Schematics Acquired . | . . . . . Parts Damaged . | . . . . . Bothacking | -11 -10 -10 -10 -9 ------------ Run | Jun Mat Min Exi Min Used RIF Installer . | . . . . . Robots Hacked . | . . . . . Non-combat . | . . . . . Combat . | . . . . . Robot Hacks Applied . | . . . . . Relay Couplers Released . | . . . . . Fabnet Peak Effective % . | . . . . . Robots Rewired . | . . . . . Allies Hacked . | . . . . . Hacks Repelled . | . . . . . Allies | -11 -10 -10 -10 -9 -------- Run | Jun Mat Min Exi Min Total Allies 3 | . . 3 . . Largest Group 3 | . . 3 2 . Highest-Rated Group 76 | . . 76 45 . Highest-Rated Ally 31 | . . 31 31 . Total Orders . | . . . . . Ally Attacks . | . . . . . Total Damage . | . . . . . Kills . | . . . . . Allies Corrupted . | . . . . . Allies Melted . | . . . . . Turrets Deployed 1 | . . . 1 . Intel | -11 -10 -10 -10 -9 ------- Run | Jun Mat Min Exi Min Robot Analysis Total . | . . . . . Derelict Logs Recovered 1 | . . 1 . . Drone Launches . | . . . . . Drone Recoveries . | . . . . . Exploration | -11 -10 -10 -10 -9 ------------- Run | Jun Mat Min Exi Min Turns Passed 5686 | 76 2640 1262 1525 183 Spaces Moved 3454 | 53 1510 813 990 88 Core 22 | 22 . . . . Treads 237 | 28 209 . . . Legs . | . . . . . Wheels 3195 | 3 1301 813 990 88 Hover . | . . . . . Flight . | . . . . . Fastest Speed 50 | 50 95 110 110 110 Average Speed 137 | 110 139 124 144 152 Slowest Speed 240 | 160 240 125 155 155 Overloaded Moves . | . . . . . Propulsion Burnouts . | . . . . . Robots Hopped . | . . . . . Cave-ins Triggered 1 | . . . 1 . Exploration Rate (%) 63 | 4 100 100 94 21 Regions Visited 4 Branch Regions 3 Pre-discovered Areas 2 | . . 1 1 . Known Exits Taken 3 | . 1 1 1 . Unknown Exits Taken 1 | 1 . . . . Scrap Searched 1 | . . 1 . . Spaces Dug 17 | . 8 . 9 . Terrain Destroyed 55 | . 8 18 9 20 Melee . | . . . . . Projectile 12 | . . . 9 3 AOE 43 | . 8 18 . 17 Terrain Rammed . | . . . . . Walls Destroyed . | . . . . . Machines Disabled . | . . . . . Actions | -11 -10 -10 -10 -9 --------- Run | Jun Mat Min Exi Min Total 4174 | 68 1929 1005 1056 116 Wait 492 | . 302 146 34 10 Move 3449 | 52 1509 812 988 88 Hop . | . . . . . Pick Up 44 | 9 23 4 7 1 Fast Attach 4 | 1 2 1 . . Attach 11 | 5 2 . 3 1 Detach . | . . . . . Swap 36 | . 22 6 2 6 Drop 27 | . 15 6 6 . Fire 104 | 1 54 30 9 10 Melee . | . . . . . Ram . | . . . . . Kick . | . . . . . Crush . | . . . . . Escape Stasis 1 | . . . 1 . Rewire 6 | . . . 6 . Trap . | . . . . . Miscellaneous . | . . . . . Route ------- -11/Junkyard -10/Materials (discovered 4 exits: *Mat x2 / *Min x2) -10/Mines (discovered 3 exits: *Mat x2 / *Exi) -10/Exiles (discovered 2 exits: *Min x2) -9/Mines History --------- Turn | Location | Event 10 | -11/Junkyard | Discovered new exit (range 16) 77 | -11/Junkyard | Entered Materials 305 | -10/Materials | Build established: Mutant 667 | -10/Materials | Discovered new exit (range 6) 788 | -10/Materials | Identified exit to Mines 1344 | -10/Materials | Discovered exit to Mines (range 8) 1361 | -10/Materials | Discovered new exit (range 10) 1383 | -10/Materials | Identified exit to Materials 1814 | -10/Materials | Discovered exit to Materials (range 10) 2717 | -10/Materials | Entered Mines 2752 | -10/Mines | Joined a pair of Derelicts in attacking an 0b10 outpost 2968 | -10/Mines | Discovered new exit (range 7) 2977 | -10/Mines | Identified exit to Exiles 3008 | -10/Mines | Deemed a non-threat by the Exiles lab entrance 3254 | -10/Mines | Core integrity fell below 50% 3522 | -10/Mines | Discovered exit to Materials (range 5) 3575 | -10/Mines | Discovered exit to Materials (range 15) 3634 | -10/Mines | A weapon hastily lodged in a ceiling crevice suddenly fell to the ground 3673 | -10/Mines | Received a Mining Laser from a helpful Derelict 3979 | -10/Mines | Entered Exiles 3979 | -10/Exiles | Accompanied by 2 allies 4009 | -10/Exiles | Led the pair of lost Derelicts to a safe place 4018 | -10/Exiles | Discovered new exit (range 15) 4034 | -10/Exiles | Identified exit to Mines 4062 | -10/Exiles | Met 8R-AWN 4098 | -10/Exiles | Met EX-HEX 4265 | -10/Exiles | Met EX-DEC 4290 | -10/Exiles | Visited The Gauntlet 4483 | -10/Exiles | Learned location of Zion (-6) 4697 | -10/Exiles | Discovered exit to Mines (range 14) 4786 | -10/Exiles | Met EX-BIN 4812 | -10/Exiles | Aligned with FarCom system 4814 | -10/Exiles | Given EX-Vault access code 4904 | -10/Exiles | Opened EX-Vault 4920 | -10/Exiles | Found Prototype Ballistic Gun 4998 | -10/Exiles | DAS Turret deployed 5031 | -10/Exiles | Warned to stay clear of 0b10 Research branches 5373 | -10/Exiles | Crushed by falling debris 5374 | -10/Exiles | Core integrity fell below 20% 5404 | -10/Exiles | Lost 3 parts (2n1u) 5504 | -10/Exiles | Left Exiles lab with XL Autogun Array 5504 | -10/Exiles | Entered Mines 5608 | -9/Mines | Assembled infested the area 5687 | -9/Mines | Destroyed by as-44099 with Assembled Heavy Rifle Last Messages --------------- 05522_ System corrupted: Matter fused (-5). 05526_ Acquired 5 matter. 05528_ Acquired 14 matter. 05532_ The unstable cave ceiling collapses. 05532_ Acquired 3 matter. 05548_ The unstable cave ceiling collapses. 05549_ System corrupted: Heat flow error (+281). 05554_ Acquired 28 matter. 05557_ Acquired Ion Engine. 05561_ Acquired 27 matter. 05608_ ALERT: Infestation in the mines, dispatching Demolisher response squad. 05609_ 5CRAUWGJOIVP:AWJK26WSV=M0<5M7L2UUKPI< 05657_ System corrupted: IFF burst signal emitted. 05658_ HV Slug penetrates as-15342. 05658_ as-15342 suffers critical hit (Destroy). 05658_ Destroyed Asb. Heavy Rifle. 05658_ HV Slug penetrates Wall. 05676_ System corrupted: Matter fused (-6). 05682_ HV Slug penetrates Wall. Map ----- +----------------------------------------------------+ | ????????########## #????????? | | ?????????????????# #????????? | | ?????????????????# #????????? | | ?????????????????# #????????? | | ?????????????????# #????????? | | ?????????????????# #????????? | | ?????????????????# #????????? | | ???????????????### #??????#?? | | ??????????????## #????? #?? | | ??????????????# #???? ##? | | ??????????????# #### ## | | ??????????????# # | | ??????????????## # | | ???????????????# ## | | ???????????????# ## ## ##? | | ???????????????# ###? #????? | | ???????????????# #???? #????? | | ???????????????# #???? ????? | | ???????????????# #?????##???? | | ????############ #??????????? | | ????# #??????????? | | ????# #############??????????? | | ????# #??????????????????????? | | ????# #??????????????????????? | | ????# #??????????????????????? | | ????#@#??????????????????????? | | ???#;a### #???????????????? | | ??#;# #??????????????? | | ?? # % = #?????????????? | | ?##### *% #?????????????? | | ??????# ! ??????????? | | ??????? ?????????? | | ??????? ##### $??????????? | | ??????? ##????????????????? | | ???????? ###?????????????????? | | ????????##???????????????????? | | ?????????????????????????????? | | ?????????????????????????????? | | ?????????????????????????????? | | ?????????????????????????????? | | ?????????????????????????????? | | ?????????????????????????????? | | ?????????????????????????????? | | ?????????????????????????????? | | ?????????????????????????????? | | ?????????????????????????????? | | | | | | | | | +----------------------------------------------------+ Best States ------------- Heat Dissipation 25 Energy Generation 14 Energy Capacity 250 Matter Stores 300 Matter Capacity 300 Sight Range 16 Terrain Scan Density 10 Weapon Shielding 33 Evasion (%) 50 Recoil Reduction 2 Item Schematics ----------------- Huge Storage Unit | -10/Materials | Hacked Robot Schematics ------------------ None Fabricated ------------ Nothing Alien Tech Used ----------------- None Achievements -------------- None Challenges ------------ None Game ------ Seed SeismicSensorScanner Manual? 0 Play Time 00:51:11 Cumulative 36.5 hours Start 2023.06.22 @ 14:34:58 End 2023.06.22 @ 15:57:05 Sessions 1 Manual Loads 0 Difficulty Rogue Special Mode None Game No. 24 Rogue 24 Adventurer 0 Explorer 0 Win Type - Total 0 Types 0/0/0/0/0/0/0/0/0 Lore% 31 Gallery% 33 Achievement% 33 Wizard Run 0 Options --------- ASCII 0 Keyboard 0 Movement Mouse Keybinds 0 Fullscreen 1 Font 24/Smallcaps Map View 76x50 Tactical HUD 1 Map Filters NONE Filters NONE Steam 1 RUN: b9cd3dcc-7782-4566-a3a0-f54bff2b796b